fUSD/lending_fUSD_20260123
["ID","MTS","AMOUNT","RATE_DAILY","PERIOD"]
[403146532,1769203753159,-151.0,0.00015601,2]
[403146533,1769203753188,-1589.05,0.00015636,2]
[403146534,1769203753212,-166.01,0.00015821,2]
[403146535,1769203753234,-230.28,0.00015918,2]
[403146536,1769203753257,-300.0,0.00015999,2]
[403146537,1769203753278,-2482.49043881,0.00016,4]
[403146561,1769203831749,-300.0,0.0001589,3]
[403146562,1769203831759,-1200.0,0.00015999,2]
[403146563,1769203831769,-300.0,0.00015999,2]
[403146564,1769203831784,-4253.8,0.00016,4]
[403146565,1769203831795,-17055.99880736,0.00016,4]
[403146566,1769203831807,-19438.7531814,0.00016,4]
[403146614,1769203837614,-1867.36133801,0.00016,4]
[403146615,1769203837625,-580.23789574,0.00016,4]
[403146616,1769203837636,-994.99610307,0.00016,4]
[403146617,1769203837672,-757.775,0.00016,4]
[403146749,1769203842754,-1154.71861866,0.00016,4]
[403146750,1769203843020,-378.87943479,0.00016,4]
[403146751,1769203843079,-13881.98514283,0.00016,4]
[403146752,1769203843091,-11455.88315591,0.00016,4]
[403146753,1769203843903,-2960.0,0.00016,4]
[403146754,1769203843915,-252.88400424,0.00016,4]
[403146755,1769203843961,-28788.40440978,0.00016,4]
[403146756,1769203843970,-300.0,0.00016164,3]
[403146757,1769203843980,-10000.0056348,0.000162,5]
[403146758,1769203843989,-1295.144,0.00016222,2]
[403146759,1769203843999,-182.608,0.00016222,2]
[403146760,1769203844008,-185.60593024,0.00016245,2]
[403146761,1769203844017,-333.75658376,0.00016245,2]
[403146762,1769203844027,-300.0,0.00016438,4]
[403146763,1769203844036,-1631.45480968,0.00016453,2]
[403146764,1769203844048,-230.28,0.00016515,2]
[403146765,1769203844059,-500.0,0.00016541,2]
[403146766,1769203844068,-500.0,0.00016541,2]
[403146767,1769203844077,-500.0,0.00016541,2]
[403146768,1769203844086,-375.88856298,0.00016541,2]
[403146769,1769203844096,-151.0,0.00016543,2]
[403146770,1769203844105,-500.0,0.00016552,2]
[403146771,1769203844114,-500.0,0.00016552,2]
[403146772,1769203844126,-500.0,0.00016552,2]
[403146773,1769203844135,-500.0,0.00016552,2]
[403146774,1769203844145,-500.0,0.00016552,2]
[403146775,1769203844155,-500.0,0.00016552,2]
[403146776,1769203844165,-1000.0,0.00016553,2]
[403146777,1769203844175,-761.77,0.00016592,2]
[403146778,1769203844184,-1631.45480965,0.00016614,2]
[403146779,1769203844195,-622.73174709,0.00016652,2]
[403146780,1769203844205,-474.24,0.00016666,2]
[403146781,1769203844214,-159.3,0.00016697,2]
[403146782,1769203844227,-2425.94,0.00016723,2]
[403146783,1769203844237,-150.0,0.00016743,2]
[403146784,1769203844247,-1631.45480965,0.00016775,2]
[403146785,1769203844256,-200.0,0.00016825,2]
[403146786,1769203844266,-150.0,0.00016825,2]
[403146787,1769203844277,-500.0,0.00016825,2]
[403146788,1769203844286,-500.0,0.00016825,2]
[403146789,1769203844295,-150.0,0.00016825,2]
[403146790,1769203844305,-1852.42,0.00016847,2]
[403146791,1769203844315,-150.0,0.0001688,2]
[403146792,1769203844325,-500.0,0.0001688,2]
[403146794,1769203844335,-500.0,0.0001688,2]
[403146796,1769203844344,-4302.46443314,0.00016931,2]
[403146797,1769203844353,-200.0,0.00016935,2]
[403146798,1769203844363,-500.0,0.00016935,2]
[403146801,1769203844374,-500.0,0.00016935,2]
[403146802,1769203844384,-1631.45480965,0.00016935,2]
[403146803,1769203844396,-3240.0,0.00016972,2]
[403146804,1769203844406,-300.0,0.00016986,4]
[403146805,1769203844420,-300.0,0.00016986,4]
[403146806,1769203844431,-300.0,0.00016986,4]
[403146807,1769203844442,-527.36277185,0.00016989,2]
[403146808,1769203844453,-500.0,0.00016989,2]
[403146809,1769203844464,-250.0,0.00017,2]
[403146810,1769203844474,-845.0,0.0001704,2]
[403146811,1769203844484,-500.0,0.00017044,2]
[403146812,1769203844494,-500.0,0.00017096,2]
[403146813,1769203844503,-1631.45480965,0.00017096,2]
[403146814,1769203844512,-500.0,0.00017099,2]
[403146815,1769203844523,-578.20924308,0.00017099,2]
[403146816,1769203844535,-250.0,0.00017099,2]
[403146817,1769203844545,-500.0,0.00017099,2]
[403146818,1769203844555,-500.0,0.00017099,2]
[403146819,1769203844564,-250.0,0.00017099,2]
[403146820,1769203844574,-500.0,0.00017099,2]
[403146821,1769203844583,-250.0,0.00017099,2]
[403146822,1769203844593,-500.0,0.00017099,2]
[403146823,1769203844603,-500.0,0.00017099,2]
[403146824,1769203844615,-250.0,0.00017099,2]
[403146825,1769203844625,-500.0,0.00017099,2]
[403146826,1769203844634,-250.0,0.00017099,2]
[403146827,1769203844643,-500.0,0.00017099,2]
[403146828,1769203844653,-500.0,0.00017099,2]
[403146829,1769203844663,-250.0,0.00017099,2]
[403146830,1769203844672,-500.0,0.00017099,2]
[403146831,1769203844681,-250.0,0.00017099,2]
[403146832,1769203844690,-500.0,0.00017099,2]
[403146833,1769203844699,-500.0,0.00017099,2]
[403146834,1769203844708,-250.0,0.00017099,2]
[403146835,1769203844718,-500.0,0.00017099,2]
[403146836,1769203844728,-250.0,0.00017099,2]
[403146837,1769203844737,-500.0,0.00017099,2]
[403146838,1769203844746,-500.0,0.00017099,2]
[403146839,1769203844755,-250.0,0.00017099,2]
[403146840,1769203844764,-500.0,0.00017099,2]
[403146841,1769203844774,-250.0,0.00017099,2]
[403146842,1769203844784,-500.0,0.00017099,2]
[403146843,1769203844794,-500.0,0.00017099,2]
[403146844,1769203844805,-500.0,0.00017099,2]
[403146845,1769203844815,-250.0,0.00017099,2]
[403146846,1769203844824,-500.0,0.00017099,2]
[403146847,1769203844835,-500.0,0.00017099,2]
[403146848,1769203844844,-250.0,0.00017099,2]
[403146849,1769203844855,-500.0,0.00017099,2]
[403146850,1769203844865,-250.0,0.00017099,2]
[403146851,1769203844874,-500.0,0.00017099,2]
[403146852,1769203844886,-500.0,0.00017099,2]
[403146853,1769203844895,-250.0,0.00017099,2]
[403146854,1769203844906,-500.0,0.00017099,2]
[403146855,1769203844917,-250.0,0.00017099,2]
[403146856,1769203844929,-500.0,0.00017099,2]
[403146857,1769203844939,-500.0,0.00017099,2]
[403146858,1769203844949,-250.0,0.00017099,2]
[403146859,1769203844959,-500.0,0.00017099,2]
[403146860,1769203844969,-854.2589148,0.00017099,2]
[403146861,1769203844979,-250.0,0.00017099,2]
[403146862,1769203844989,-500.0,0.00017099,2]
[403146863,1769203845000,-500.0,0.00017099,2]
[403146864,1769203845009,-250.0,0.00017099,2]
[403146865,1769203845019,-500.0,0.00017099,2]
[403146866,1769203845028,-250.0,0.00017099,2]
[403146867,1769203845037,-500.0,0.00017099,2]
[403146868,1769203845047,-500.0,0.00017099,2]
[403146869,1769203845057,-250.0,0.00017099,2]
[403146870,1769203845067,-500.0,0.00017099,2]
[403146871,1769203845076,-250.0,0.00017099,2]
[403146872,1769203845087,-322.6107,0.00017099,2]
[403146873,1769203845097,-250.0,0.00017099,2]
[403146874,1769203845107,-250.0,0.00017099,2]
[403146875,1769203845117,-250.0,0.00017099,2]
[403146876,1769203845131,-250.0,0.00017099,2]
[403146877,1769203845140,-250.0,0.00017099,2]
[403146878,1769203845150,-174.61919141,0.00017099,2]
[403146879,1769203845159,-209.40437684,0.00017099,2]
[403146880,1769203845172,-250.0,0.00017099,2]
[403146881,1769203845181,-250.0,0.00017099,2]
[403146882,1769203845201,-250.0,0.00017099,2]
[403146883,1769203845211,-250.0,0.00017099,2]
[403146884,1769203845220,-250.0,0.00017099,2]
[403146885,1769203845230,-250.0,0.00017099,2]
[403146886,1769203845239,-151.0,0.00017099,2]
[403146887,1769203845249,-151.0,0.00017099,2]
[403146888,1769203845259,-250.0,0.00017099,2]
[403146889,1769203845268,-151.0,0.00017099,2]
[403146890,1769203845278,-500.0,0.00017099,2]
[403146891,1769203845287,-250.0,0.00017099,2]
[403146892,1769203845296,-151.0,0.00017099,2]
[403146893,1769203845306,-500.0,0.00017099,2]
[403146894,1769203845315,-250.0,0.00017099,2]
[403146895,1769203845324,-151.0,0.00017099,2]
[403146896,1769203845334,-500.0,0.00017099,2]
[403146897,1769203845344,-250.0,0.00017099,2]
[403146898,1769203845354,-151.0,0.00017099,2]
[403146899,1769203845363,-500.0,0.00017099,2]
[403146900,1769203845372,-250.0,0.00017099,2]
[403146901,1769203845381,-151.0,0.00017099,2]
[403146902,1769203845391,-500.0,0.00017099,2]
[403146903,1769203845400,-250.0,0.00017099,2]
[403146904,1769203845409,-151.0,0.00017099,2]
[403146905,1769203845418,-250.0,0.00017099,2]
[403146906,1769203845427,-500.0,0.00017099,2]
[403146907,1769203845436,-151.0,0.00017099,2]
[403146908,1769203845446,-250.0,0.00017099,2]
[403146909,1769203845455,-500.0,0.00017099,2]
[403146910,1769203845464,-151.0,0.00017099,2]
[403146911,1769203845474,-250.0,0.00017099,2]
[403146912,1769203845483,-500.0,0.00017099,2]
[403146913,1769203845493,-151.0,0.00017099,2]
[403146914,1769203845503,-250.0,0.00017099,2]
[403146915,1769203845513,-500.0,0.00017099,2]
[403146916,1769203845522,-391.18071828,0.00017099,2]
[403146917,1769203845531,-500.0,0.00017099,2]
[403146918,1769203845540,-500.0,0.00017099,2]
[403146919,1769203845553,-2468.0,0.00017099,2]
[403146920,1769203845563,-230.28,0.00017112,2]
[403146921,1769203845572,-500.0,0.00017154,2]
[403146922,1769203845582,-250.0,0.00017161,2]
[403146923,1769203845592,-500.0,0.00017209,2]
[403146924,1769203845601,-1631.45480965,0.00017257,2]
[403146925,1769203845610,-500.0,0.00017263,2]
[403146926,1769203845620,-500.0,0.00017318,2]
[403146927,1769203845629,-150.0,0.00017327,2]
[403146928,1769203845639,-150.0,0.00017327,2]
[403146929,1769203845648,-150.0,0.00017327,2]
[403146930,1769203845658,-500.0,0.00017327,2]
[403146931,1769203845667,-150.0,0.00017327,2]
[403146932,1769203845676,-500.0,0.00017327,2]
[403146933,1769203845685,-836.0,0.0001736,2]
[403146934,1769203845695,-500.0,0.00017373,2]
[403146935,1769203845704,-150.0,0.00017382,2]
[403146936,1769203845713,-150.0,0.00017382,2]
[403146937,1769203845723,-150.0,0.00017382,2]
[403146943,1769203846101,-500.0,0.00017382,2]
[403146944,1769203846111,-150.0,0.00017382,2]
[403146945,1769203846121,-500.0,0.00017382,2]
[403146946,1769203846132,-1631.45480965,0.00017418,2]
[403146947,1769203846142,-500.0,0.00017425,2]
[403146948,1769203846151,-500.0,0.00017428,2]
[403146949,1769203846160,-176.1,0.00017429,2]
[403146950,1769203846170,-150.0,0.00017437,2]
[403146951,1769203846180,-150.0,0.00017437,2]
[403146952,1769203846189,-255.80435828,0.00017437,2]
[403146953,1769203846203,-500.0,0.00017437,2]
[403146954,1769203846213,-154.75207679,0.00017437,2]
[403146955,1769203846222,-500.0,0.00017437,2]
[403146956,1769203846231,-150.0,0.00017456,2]
[403146957,1769203846241,-150.65265465,0.00017456,2]
[403146958,1769203846250,-500.0,0.00017456,2]
[403146959,1769203846260,-150.0,0.00017456,2]
[403146960,1769203846269,-150.0,0.00017456,2]
[403146961,1769203846283,-500.0,0.00017456,2]
[403146962,1769203846292,-150.0,0.00017456,2]
[403146963,1769203846301,-500.0,0.00017456,2]
[403146964,1769203846310,-500.0,0.00017456,2]
[403146965,1769203846320,-500.0,0.00017456,2]
[403146966,1769203846330,-150.0,0.00017456,2]
[403146967,1769203846339,-150.0,0.00017456,2]
[403146968,1769203846348,-500.0,0.00017456,2]
[403146969,1769203846358,-151.07703537,0.00017456,2]
[403146970,1769203846368,-150.0,0.00017456,2]
[403146971,1769203846377,-500.0,0.0001748,2]
[403146972,1769203846387,-500.0,0.00017483,2]
[403146973,1769203846400,-274.27837996,0.00017491,2]
[403146974,1769203846410,-150.0,0.00017491,2]
[403146975,1769203846420,-500.0,0.00017491,2]
[403146976,1769203846430,-500.0,0.00017491,2]
[403146977,1769203846440,-6518.91910562,0.000175,2]
[403146978,1769203846450,-500.0,0.00017511,2]
[403146979,1769203846460,-235.3073639,0.00017511,2]
[403146980,1769203846472,-500.0,0.00017511,2]
[403146981,1769203846481,-227.55062227,0.00017511,2]
[403146982,1769203846492,-500.0,0.00017511,2]
[403146983,1769203846501,-500.0,0.00017511,2]
[403146984,1769203846511,-500.0,0.00017511,2]
[403146985,1769203846521,-150.0,0.00017511,2]
[403146986,1769203846532,-150.0,0.00017511,2]
[403146987,1769203846542,-500.0,0.00017511,2]
[403146988,1769203846551,-150.0,0.00017511,2]
[403146989,1769203846560,-500.0,0.00017534,7]
[403146990,1769203846569,-500.0,0.00017534,7]
[403146991,1769203846578,-500.0,0.00017535,2]
[403146992,1769203846590,-229.21715423,0.00017537,2]
[403146993,1769203846599,-150.0,0.00017546,2]
[403146994,1769203846608,-500.0,0.00017546,2]
[403146995,1769203846619,-500.0,0.00017546,2]
[403146996,1769203846628,-152.84284681,0.00017546,2]
[403146997,1769203846638,-500.0,0.00017546,2]
[403146998,1769203846647,-500.0,0.00017546,2]
[403146999,1769203846656,-150.0,0.00017546,2]
[403147000,1769203846667,-500.0,0.00017546,2]
[403147001,1769203846677,-500.0,0.00017566,2]
[403147002,1769203846686,-500.0,0.00017566,2]
[403147003,1769203846696,-303.53248348,0.00017566,2]
[403147004,1769203846705,-322.45367867,0.00017566,2]
[403147005,1769203846715,-500.0,0.00017566,2]
[403147006,1769203846725,-150.0,0.00017566,2]
[403147007,1769203846734,-157.15309479,0.00017566,2]
[403147008,1769203846743,-500.0,0.00017566,2]
[403147009,1769203846751,-1631.45480965,0.00017578,2]
[403147010,1769203846760,-702.0,0.0001758,2]
[403147011,1769203846769,-500.0,0.00017589,2]
[403147012,1769203846779,-158.35836296,0.00017597,2]
[403147013,1769203846788,-500.0,0.00017601,2]
[403147014,1769203846796,-500.0,0.00017601,2]
[403147015,1769203846805,-500.0,0.00017601,2]
[403147016,1769203846814,-500.0,0.00017601,2]
[403147017,1769203846823,-250.0,0.00017601,2]
[403147018,1769203846831,-500.0,0.00017601,2]
[403147019,1769203846840,-500.0,0.0001762,2]
[403147020,1769203846849,-500.0,0.0001762,2]
[403147021,1769203846858,-500.0,0.0001762,2]
[403147022,1769203846867,-164.45892503,0.0001762,2]
[403147023,1769203846876,-500.0,0.0001762,2]
[403147024,1769203846885,-208.03774045,0.0001764,2]
[403147025,1769203846895,-500.0,0.00017644,2]
[403147026,1769203846904,-885.86649465,0.00017647,2]
[403147027,1769203846916,-218.7863994,0.00017647,2]
[403147028,1769203846925,-181.08010149,0.00017647,2]
[403147029,1769203846934,-618.24569641,0.00017653,2]
[403147030,1769203846944,-500.0,0.00017656,2]
[403147031,1769203846953,-500.0,0.00017656,2]
[403147032,1769203846962,-500.0,0.00017656,2]
[403147033,1769203846978,-500.0,0.00017656,2]
[403147034,1769203846990,-500.0,0.00017656,2]
[403147035,1769203847000,-233.97306392,0.00017675,2]
[403147036,1769203847010,-500.0,0.00017675,2]
[403147037,1769203847019,-500.0,0.00017675,2]
[403147038,1769203847030,-281.84582328,0.00017675,2]
[403147039,1769203847041,-8791.53,0.00017677,2]
[403147040,1769203847053,-836.0,0.0001768,2]
[403147041,1769203847063,-1000.0,0.0001768,2]
[403147042,1769203847072,-795.95763591,0.00017681,2]
[403147043,1769203847082,-1000.0,0.00017687,2]
[403147044,1769203847091,-1000.0,0.00017691,2]
[403147045,1769203847102,-500.0,0.00017699,2]
[403147046,1769203847112,-403.0,0.000177,5]
[403147047,1769203847124,-230.28,0.00017709,2]
[403147048,1769203847134,-500.0,0.0001771,2]
[403147049,1769203847143,-500.0,0.0001771,2]
[403147050,1769203847153,-500.0,0.0001771,2]
[403147051,1769203847163,-500.0,0.0001771,2]
[403147052,1769203847173,-500.0,0.00017711,2]
[403147053,1769203847182,-1000.0,0.00017719,2]
[403147054,1769203847192,-1000.0,0.00017723,2]
[403147055,1769203847202,-1000.0,0.00017727,2]
[403147056,1769203847212,-500.0,0.0001773,2]
[403147057,1769203847222,-500.0,0.0001773,2]
[403147058,1769203847232,-2000.0,0.0001773,2]
[403147059,1769203847242,-2000.0,0.0001773,2]
[403147060,1769203847253,-2000.0,0.0001773,2]
[403147061,1769203847263,-2000.0,0.0001773,2]
[403147062,1769203847273,-2000.0,0.0001773,2]
[403147063,1769203847283,-1276.222,0.0001773,2]
[403147064,1769203847293,-1751.30830591,0.0001773,2]
[403147065,1769203847302,-1631.45480965,0.00017739,2]
[403147066,1769203847312,-1000.0,0.00017745,2]
[403147067,1769203847322,-500.0,0.00017754,2]
[403147068,1769203847333,-500.0,0.00017765,2]
[403147069,1769203847342,-255.87876924,0.00017765,2]
[403147070,1769203847352,-500.0,0.00017765,2]
[403147071,1769203847361,-500.0,0.00017765,2]
[403147072,1769203847371,-500.0,0.00017765,2]
[403147073,1769203847381,-1405.24,0.00017765,2]
[403147074,1769203847391,-2730.63,0.00017765,2]
[403147075,1769203847400,-1000.0,0.00017768,2]
[403147076,1769203847410,-1000.0,0.00017772,2]
[403147077,1769203847419,-500.0,0.00017785,2]
[403147078,1769203847429,-500.0,0.00017785,2]
[403147079,1769203847438,-1000.0,0.00017786,2]
[403147080,1769203847449,-1000.0,0.000178,2]
[403147081,1769203847459,-500.0,0.00017808,2]
[403147082,1769203847470,-150.0,0.00017808,2]
[403147083,1769203847483,-500.0,0.00017809,2]
[403147084,1769203847493,-795.95763591,0.00017809,2]
[403147085,1769203847502,-460.93814025,0.0001782,2]
[403147086,1769203847511,-500.0,0.0001782,2]
[403147087,1769203847521,-500.0,0.0001782,2]
[403147088,1769203847530,-630.64669746,0.0001782,2]
[403147089,1769203847540,-6645.66140582,0.0001783,2]
[403147090,1769203847551,-300.0,0.0001784,2]
[403147091,1769203847565,-150.0,0.0001784,2]
[403147092,1769203847574,-500.0,0.00017863,2]
[403147093,1769203847586,-500.0,0.00017863,2]
[403147094,1769203847596,-500.0,0.00017875,2]
[403147095,1769203847605,-500.0,0.00017875,2]
[403147096,1769203847614,-1000.0,0.00017875,2]
[403147097,1769203847624,-175.99,0.0001789,2]
[403147098,1769203847633,-190.17693126,0.000179,2]
[403147099,1769203847642,-25000.0,0.000179,3]
[403147100,1769203847651,-16520.97623702,0.000179,3]
[403147101,1769203847661,-485.78693407,0.000179,2]
[403147102,1769203847671,-1000.0,0.000179,2]
[403147103,1769203847680,-1631.45480965,0.000179,2]
[403147104,1769203847688,-8667.40045111,0.000179,2]
[403147105,1769203847696,-1361.45905748,0.000179,2]
[403147106,1769203847705,-5283.81108714,0.000179,2]
[403147107,1769203847714,-805.50550802,0.000179,3]
[403147108,1769203847723,-500.0,0.000179,2]
[403147109,1769203847732,-500.0,0.000179,2]
[403147110,1769203847740,-500.0,0.000179,2]
[403147111,1769203847750,-500.0,0.000179,2]
[403147112,1769203847761,-500.0,0.000179,2]
[403147113,1769203847772,-500.0,0.000179,2]
[403147114,1769203847781,-500.0,0.000179,2]
[403147115,1769203847790,-500.0,0.000179,2]
[403147116,1769203847800,-500.0,0.000179,2]
[403147117,1769203847809,-500.0,0.000179,2]
[403147118,1769203847818,-500.0,0.000179,2]
[403147119,1769203847827,-500.0,0.000179,2]
[403147120,1769203847836,-500.0,0.000179,2]
[403147121,1769203847846,-500.0,0.000179,2]
[403147122,1769203847855,-500.0,0.000179,2]
[403147123,1769203847864,-500.0,0.000179,2]
[403147124,1769203847874,-500.0,0.000179,2]
[403147125,1769203847883,-500.0,0.000179,2]
[403147126,1769203847892,-500.0,0.000179,2]
[403147127,1769203847900,-500.0,0.000179,2]
[403147128,1769203847908,-500.0,0.000179,2]
[403147129,1769203847917,-500.0,0.000179,2]
[403147130,1769203847925,-500.0,0.000179,2]
[403147131,1769203847934,-500.0,0.000179,2]
[403147132,1769203847944,-500.0,0.000179,2]
[403147133,1769203847953,-500.0,0.000179,2]
[403147134,1769203847962,-500.0,0.000179,2]
[403147135,1769203847971,-500.0,0.000179,2]
[403147136,1769203847981,-500.0,0.000179,2]
[403147137,1769203847990,-500.0,0.000179,2]
[403147138,1769203848000,-264.96816924,0.000179,2]
[403147139,1769203848010,-358.5087,0.000179,2]
[403147140,1769203848019,-3174.0,0.000179,2]
[403147141,1769203848028,-204.04236392,0.00017914,2]
[403147142,1769203848037,-500.0,0.00017918,2]
[403147143,1769203848046,-1000.0,0.00017918,2]
[403147144,1769203848056,-1000.0,0.00017918,2]
[403147145,1769203848065,-500.0,0.00017918,2]
[403147146,1769203848075,-490.0,0.0001793,2]
[403147147,1769203848084,-500.0,0.0001793,2]
[403147148,1769203848093,-1000.0,0.00017952,2]
[403147149,1769203848103,-1000.0,0.00017952,2]
[403147150,1769203848112,-1000.0,0.00017952,2]
[403147151,1769203848123,-876.427,0.00017952,2]
[403147152,1769203848133,-700.0,0.0001797,2]
[403147153,1769203848143,-400.0,0.0001797,2]
[403147154,1769203848153,-700.0,0.0001797,2]
[403147155,1769203848163,-502.67274929,0.0001797,2]
[403147156,1769203848172,-802.43614103,0.0001797,2]
[403147157,1769203848182,-1000.0,0.0001797,2]
[403147158,1769203848194,-1000.0,0.0001797,2]
[403147159,1769203848205,-500.0,0.00017973,2]
[403147160,1769203848215,-150.0,0.00017973,2]
[403147161,1769203848224,-150.0,0.00017973,2]
[403147162,1769203848233,-175.99,0.0001799,2]
[403147163,1769203848242,-8791.53,0.0001799,2]
[403147164,1769203848252,-151.0,0.00017997,2]
[403147165,1769203848261,-150.0,0.00017999,2]
[403147166,1769203848271,-155.0,0.00017999,2]
[403147167,1769203848280,-1008.6966,0.00017999,2]
[403147168,1769203848289,-300.0,0.00017999,2]
[403147169,1769203848299,-300.0,0.00017999,2]
[403147170,1769203848308,-4334529.5805017,0.00018,2]
[403147171,1769203848318,-1588521.14583446,0.00018,2]
[403147172,1769203848718,-22348.26397216,0.00018,2]
[403147173,1769203848730,-2240.2721521,0.00018,2]
[403147174,1769203848741,-381.65489533,0.00018,2]
[403147175,1769203848842,-79587.27742405,0.00018,2]
[403147176,1769203849734,-4480.1,0.00018,2]
[403147177,1769203849746,-1035.91121471,0.00018,2]
[403147178,1769203849757,-312.5,0.00018,2]
[403147179,1769203849804,-571.25288037,0.00018,2]
[403147180,1769203849816,-392.57999984,0.00018,2]
[403147194,1769204176841,187.43,0.00013287,2]
[403147205,1769204694210,996.49,0.000226,120]
[403147211,1769205031711,-151.0,0.00015917,2]
[403147212,1769205031721,-793.23747053,0.00016135,2]
[403147213,1769205031926,-569.46430847,0.00016135,2]
[403147215,1769205032002,-137.298221,0.00016135,2]
[403147217,1769205032011,-193.721779,0.00016144,2]
[403147609,1769205037763,-56.278221,0.00016144,2]
[403147610,1769205037774,-556.37,0.00016154,2]
[403147611,1769205037784,-1042.05,0.00016172,2]
[403147612,1769205037793,-1200.0,0.00016174,2]
[403147613,1769205037803,-16593.62986473,0.00016175,2]
[403147614,1769205037814,-2549.87013527,0.00016175,2]
[403147615,1769205037823,-1000.0,0.00016211,2]
[403147616,1769205037832,-305.11152251,0.00016379,2]
[403147617,1769205037840,-836.0,0.000164,2]
[403147618,1769205037849,-208.43206255,0.00016438,2]
[403147619,1769205037858,-151.0,0.00016546,2]
[403147620,1769205037867,-3614.45,0.00016555,2]
[403147621,1769205037876,-2136.72,0.00016558,2]
[403147622,1769205037885,-1370.75152977,0.0001659,2]
[403147623,1769205037903,-499.092,0.0001659,2]
[403147624,1769205037920,-1002.90106709,0.0001659,2]
[403147625,1769205037997,-741.70540314,0.0001659,2]
[403147627,1769205038006,-151.0,0.00016592,2]
[403147629,1769205038015,-389.53479256,0.00016595,2]
[403147691,1769205039824,-1790.09687237,0.00016595,2]
[403147692,1769205039835,-573.674504,0.00016595,2]
[403147693,1769205039846,-10045.45113752,0.00016595,2]
[403147694,1769205039856,-90171.86233252,0.00016595,2]
[403147695,1769205039868,-5710.45240655,0.00016595,2]
[403147696,1769205039959,-891318.92795448,0.00016595,2]
[403147697,1769205039968,-3614.45,0.00016625,2]
[403147698,1769205039977,-165.99,0.00016645,2]
[403147699,1769205039986,-200.0,0.0001665,2]
[403147700,1769205039995,-1000.0,0.00016659,2]
[403147701,1769205040004,-3614.45,0.0001666,2]
[403147702,1769205040014,-3614.45,0.00016695,2]
[403147703,1769205040023,-166.5,0.00016712,2]
[403147704,1769205040032,-3614.45,0.0001673,2]
[403147705,1769205040040,-3614.45,0.00016765,2]
[403147706,1769205040050,-550.0,0.00016798,2]
[403147707,1769205040059,-3614.45,0.00016799,2]
[403147708,1769205040067,-3614.45,0.00016834,2]
[403147709,1769205040076,-3614.45,0.00016869,2]
[403147710,1769205040085,-3614.45,0.00016904,2]
[403147711,1769205040094,-178.13,0.00016921,2]
[403147712,1769205040103,-3614.45,0.00016939,2]
[403147713,1769205040112,-3614.45,0.00016974,2]
[403147714,1769205040121,-1042.05,0.0001698,2]
[403147715,1769205040130,-300.0,0.00016986,4]
[403147716,1769205040139,-500.0,0.00017,7]
[403147717,1769205040148,-500.0,0.00017,7]
[403147718,1769205040157,-500.0,0.00017,7]
[403147719,1769205040167,-544.89,0.00017,7]
[403147720,1769205040176,-3614.45,0.00017009,2]
[403147721,1769205040186,-500.0,0.00017019,2]
[403147722,1769205040195,-500.0,0.00017019,2]
[403147723,1769205040204,-150.0,0.00017019,2]
[403147724,1769205040213,-150.0,0.00017019,2]
[403147725,1769205040221,-500.0,0.00017019,2]